bitfinex-derivatives/quotes_ETHF0:USTF0_20251223
["timestamp","ask_amount","ask_price","bid_price","bid_amount"]
[1766448001527,0.00843104,3010.0,3006.5,6.90753909]
[1766448002726,0.00843104,3010.0,3006.5,3.58053909]
[1766448003925,0.16624,3009.4,3006.5,3.58053909]
[1766448004121,0.00498164,3008.3,3006.5,3.58053909]
[1766448005022,0.00498164,3008.3,3006.5,0.00342684]
[1766448005322,3.324,3008.2,3006.6,11.635]
[1766448005623,0.00498164,3008.3,3006.7,6.02339]
[1766448005824,3.324,3008.2,3006.8,0.16638]
[1766448006121,0.00498164,3008.3,3006.9,3.49038]
[1766448006326,0.00498164,3008.3,3007.2,0.16636]
[1766448006627,0.00498164,3008.3,3007.3,6.606]
[1766448006816,0.00498164,3008.3,3007.4,8.312]
[1766448007520,0.00498164,3008.3,3007.2,0.16636]
[1766448007726,3.32898164,3008.3,3007.3,3.324]
[1766448008626,3.324,3008.2,3007.3,3.324]
[1766448010529,3.324,3008.2,3007.1,0.164]
[1766448011429,3.324,3008.2,3007.0,3.325]
[1766448016529,3.49031,3008.2,3006.5,0.00342684]
[1766448016729,0.16632,3008.1,3006.5,3.32842684]
[1766448016931,5.764,3008.0,3006.5,3.32842684]
[1766448017130,3.325,3007.9,3006.5,3.32842684]
[1766448018135,0.16632,3008.1,3006.5,3.32842684]
[1766448018329,5.973,3008.0,3006.5,3.32842684]
[1766448021735,0.16632,3007.9,3006.5,3.32842684]
[1766448026644,3.326,3007.8,3006.5,3.32842684]
[1766448026839,3.33029823,3007.8,3006.5,3.32842684]
[1766448028037,3.33029823,3007.8,3006.5,0.00342684]
[1766448028243,3.33029823,3007.8,3006.6,15.709]
[1766448034649,3.33029823,3007.8,3006.5,0.00342684]
[1766448034849,3.33029823,3007.8,3006.5,3.32842684]
[1766448035247,3.49662823,3007.8,3006.5,3.32842684]
[1766448035447,3.49662823,3007.8,3006.5,0.00342684]
[1766448035745,0.16634,3007.6,3005.6,1.46130037]
[1766448035945,0.16635,3007.4,3005.8,8.315]
[1766448037053,0.16635,3007.4,3005.8,8.31733458]
[1766448038247,0.16636,3007.3,3005.8,0.00233458]
[1766448038443,3.326,3007.2,3005.8,0.00233458]
[1766448043059,0.16636,3007.3,3005.8,0.00233458]
[1766448043259,5.546,3007.2,3005.8,0.00233458]
[1766448043760,0.00429823,3007.8,3005.8,0.00233458]
[1766448043962,0.00429823,3007.8,3005.8,0.16877458]
[1766448043963,3.326,3007.7,3005.8,0.16877458]
[1766448044260,4.104,3007.7,3005.9,0.16643]
[1766448044460,4.104,3007.7,3006.0,3.326]
[1766448044654,3.326,3007.6,3006.1,5.864]
[1766448044853,3.326,3007.6,3006.2,8.316]
[1766448045059,3.326,3007.6,3006.3,3.326]
[1766448047564,3.326,3007.6,3005.9,0.16643]
[1766448047757,3.49234,3007.6,3006.0,7.393]
[1766448052772,0.16635,3007.5,3006.0,7.393]
[1766448054476,3.326,3007.6,3005.9,5.863]
[1766448054681,3.326,3007.6,3006.0,3.326]
[1766448055380,0.16636,3007.3,3006.0,3.326]
[1766448055579,3.326,3007.2,3006.0,3.326]
[1766448055783,2.599,3007.1,3006.0,3.326]
[1766448063183,0.16636,3007.3,3006.0,3.326]
[1766448063384,7.855,3007.2,3006.0,3.326]
[1766448083590,2.3541,3007.2,3006.0,3.326]
[1766448083896,3.326,3007.4,3006.0,3.326]
[1766448096702,3.326,3007.4,3005.9,0.16643]
[1766448096902,3.326,3007.4,3006.0,3.326]
[1766448099402,3.326,3007.4,3006.1,3.326]
[1766448100508,0.16636,3007.3,3006.1,3.326]
[1766448103410,0.16636,3007.3,3005.8,0.00233458]
[1766448103611,0.16636,3007.3,3005.9,3.326]
[1766448106813,0.16636,3007.3,3005.8,0.00233458]
[1766448107013,0.16636,3007.3,3005.9,3.326]
[1766448109412,0.16638,3007.0,3005.8,0.00233458]
[1766448109613,0.00498164,3006.7,3005.8,3.32833458]
[1766448109816,3.326,3006.6,3005.8,0.00233458]
[1766448114925,0.00498164,3006.7,3005.8,0.00233458]
[1766448127239,0.00498164,3006.7,3005.9,5.86]
[1766448127439,0.00498164,3006.7,3006.0,3.326]
[1766448131948,3.326,3007.5,3006.0,3.326]
[1766448132837,0.00498164,3007.1,3006.4,0.00497209]
[1766448133238,0.00498164,3007.1,3006.5,2.1666]
[1766448133434,0.00498164,3007.1,3006.5,3.326]
[1766448135447,0.00498164,3007.1,3006.4,0.00497209]
[1766448135647,0.00498164,3007.1,3006.5,3.326]
[1766448146461,0.0006301,3007.1,3006.5,3.326]
[1766448149664,0.0006301,3007.1,3006.4,0.00497209]
[1766448149964,0.0006301,3007.1,3006.5,3.326]
[1766448150461,0.0006301,3007.1,3006.4,0.00497209]
[1766448150665,0.0006301,3007.1,3006.5,3.326]
[1766448151753,2.5624301,3007.2,3006.5,3.326]
[1766448151960,3.49235,3007.5,3006.5,3.326]
[1766448152969,0.00498164,3007.3,3006.5,3.326]
[1766448154562,0.00498164,3007.3,3006.6,3.326]
[1766448160366,0.00498164,3007.3,3006.4,0.00497209]
[1766448160569,0.00498164,3007.3,3006.5,3.326]
[1766448163470,3.49235,3007.5,3006.5,3.326]
[1766448163870,1.20593816,3007.7,3006.5,3.326]
[1766448164068,3.326,3007.6,3006.5,3.326]
[1766448164473,0.00498164,3007.4,3006.5,3.326]
[1766448168283,0.00498164,3007.4,3006.4,0.00497209]
[1766448168574,0.00498164,3007.4,3006.5,8.161]
[1766448168778,0.00498164,3007.4,3006.4,0.00497209]
[1766448168976,0.00498164,3007.4,3006.5,3.326]
[1766448182194,0.00498164,3007.4,3006.4,0.00497209]
[1766448182395,0.00498164,3007.4,3006.5,9.183]
[1766448185499,3.326,3007.6,3006.5,9.183]
[1766448186500,0.00498164,3007.4,3006.5,9.183]
[1766448193108,0.00498164,3007.4,3006.4,0.00497209]
[1766448193307,3.326,3007.3,3006.4,3.33097209]
[1766448194999,3.326,3007.3,3006.4,0.00497209]
[1766448195201,3.326,3007.3,3006.5,3.326]
[1766448197208,3.326,3007.3,3006.4,0.00497209]
[1766448197410,3.326,3007.3,3006.5,3.326]
[1766448199912,3.326,3007.3,3006.4,0.00497209]
[1766448200112,3.326,3007.3,3006.5,3.326]
[1766448200911,0.00498164,3007.4,3006.5,3.326]
[1766448208720,0.00498164,3007.4,3006.4,0.00497209]
[1766448209018,0.00498164,3007.4,3006.5,3.496]
[1766448209318,0.00498164,3007.4,3006.4,0.00497209]
[1766448209522,0.00498164,3007.4,3006.5,9.182]
[1766448210716,0.00498164,3007.4,3006.4,0.00497209]
[1766448210920,0.00498164,3007.4,3006.5,9.182]
[1766448215126,3.326,3007.6,3006.5,9.182]
[1766448216128,0.00498164,3007.4,3006.5,9.182]
[1766448220129,0.00429823,3007.8,3006.6,3.70956256]
[1766448220322,0.00429823,3007.8,3006.7,5.855]
[1766448220628,0.00429823,3007.8,3006.8,9.181]
[1766448221016,0.00429823,3007.8,3006.8,3.326]
[1766448221221,0.00333071,3007.6,3006.8,3.326]
[1766448221422,3.326,3007.5,3006.8,3.326]
[1766448221730,3.326,3007.5,3006.6,5.855]
[1766448221731,3.326,3007.5,3006.4,0.00497209]
[1766448221930,3.326,3007.5,3006.5,9.181]
[1766448222530,3.326,3007.5,3006.4,0.00497209]
[1766448222727,3.49235,3007.5,3006.5,3.326]
[1766448223038,0.16637,3007.2,3006.4,0.00497209]
[1766448223330,3.326,3007.1,3006.0,3.326]
[1766448224231,3.326,3007.1,3006.2,0.00498164]
[1766448229956,3.326,3007.1,3005.9,3.326]
[1766448230955,3.326,3007.1,3006.2,0.00498164]
[1766448232849,3.326,3007.1,3005.8,3.32833458]
[1766448233755,3.326,3007.1,3006.1,0.00498164]
[1766448234455,0.16638,3006.9,3006.1,0.00498164]
[1766448234658,3.49239,3006.8,3005.8,0.00233458]
[1766448234956,3.326,3006.7,3005.8,0.00233458]
[1766448235358,5.766,3006.6,3005.8,0.00233458]
[1766448235558,2.0971,3006.7,3005.9,3.326]
[1766448235858,3.326,3007.2,3006.0,0.00498164]
[1766448236250,3.326,3007.2,3006.1,3.326]
[1766448236450,3.326,3007.5,3006.1,3.326]
[1766448236650,0.00429823,3007.8,3006.1,3.326]
[1766448236846,0.16631,3008.1,3006.2,3.72083587]
[1766448237354,3.326,3008.2,3006.2,3.72083587]
[1766448237554,3.326,3008.2,3006.3,0.16641]
[1766448237859,9.70105846,3008.8,3006.4,40.2892841]
[1766448237860,3.49227,3008.8,3006.4,40.2892841]
[1766448238158,3.49227,3008.8,3006.5,8.317]
[1766448238356,3.49227,3008.8,3006.6,5.855]
[1766448238553,3.49227,3008.8,3006.7,3.326]
[1766448238757,3.49227,3008.8,3006.7,8.48173993]
[1766448239057,3.49470652,3008.8,3006.7,8.48173993]
[1766448239959,0.00498164,3008.1,3006.7,8.48173993]
[1766448240860,0.00498164,3008.1,3006.8,11.642]
[1766448241161,0.00498164,3008.1,3006.8,17.497]
[1766448241348,0.00498164,3008.1,3006.7,1.46145583]
[1766448241554,0.00498164,3008.1,3006.8,3.563]
[1766448242461,0.00498164,3008.1,3006.1,1.741154]
[1766448242661,0.00498164,3008.1,3006.2,17.495]
[1766448242960,0.00498164,3008.1,3006.2,21.06311778]
[1766448243462,0.00498164,3008.1,3006.2,33.262]
[1766448243761,0.00498164,3008.1,3006.3,17.497]
[1766448244058,0.00498164,3008.1,3006.1,0.11671906]
[1766448244259,0.00498164,3008.1,3006.2,17.497]
[1766448244653,0.17130164,3008.1,3006.1,1.55404986]
[1766448244851,0.16632,3008.0,3006.2,4.211]
[1766448245054,5.47832,3007.9,3006.3,9.182]
[1766448245257,5.47832,3007.9,3006.3,5.856]
[1766448245457,5.47832,3007.9,3006.4,9.182]
[1766448253670,0.16633,3007.8,3006.4,9.182]
[1766448256568,0.16634,3007.7,3006.4,9.182]
[1766448256764,3.326,3007.6,3006.4,9.182]
[1766448261172,3.49234,3007.6,3006.4,9.182]
[1766448261674,3.49234,3007.6,3006.1,0.11671906]
[1766448262169,3.49234,3007.6,3006.2,3.798]
[1766448262471,0.16635,3007.5,3006.2,3.798]
[1766448267268,0.16635,3007.5,3006.3,9.181]
[1766448270675,3.326,3007.6,3006.1,0.11671906]
[1766448270871,0.16636,3007.3,3006.2,3.828]
[1766448271072,3.49236,3007.3,3006.2,3.828]
[1766448271875,3.326,3007.3,3006.3,3.326]
[1766448272663,3.326,3007.3,3006.0,0.00498164]
[1766448272871,0.16638,3006.9,3006.0,3.33098164]
[1766448273074,3.49239,3006.8,3006.0,0.00498164]
[1766448273273,3.326,3006.7,3006.0,0.00498164]
[1766448276477,0.1664,3006.5,3005.6,3.326]
[1766448276680,3.326,3006.4,3005.6,3.326]
[1766448277671,0.00499002,3006.3,3005.7,0.00499002]
[1766448280268,0.00499002,3006.3,3004.1,0.16653]
[1766448280269,0.16642,3006.2,3004.6,8.317]
[1766448280474,3.49243,3006.1,3005.2,3.326]
[1766448280674,3.49243,3006.1,3005.1,3.326]
[1766448281276,3.49243,3006.1,3005.3,0.00499002]
[1766448283486,3.327,3006.2,3005.4,3.327]
[1766448283692,0.1664,3006.5,3005.3,0.00499002]
[1766448283986,0.1664,3006.5,3005.4,3.327]
[1766448284688,0.00499002,3006.3,3005.3,0.00499002]
[1766448284874,0.00499002,3006.3,3005.4,3.327]
[1766448285584,0.00499002,3006.3,3005.5,3.327]
[1766448286386,0.00499002,3006.3,3005.3,5.86099002]
[1766448286387,0.00499002,3006.3,3005.3,0.00499002]
[1766448286578,3.33199002,3006.3,3005.4,3.327]
[1766448288281,3.33199002,3006.3,3005.5,3.327]
[1766448294395,3.33199002,3006.3,3005.3,0.00499002]
[1766448294592,3.49840002,3006.3,3005.3,0.00499002]
[1766448294792,3.49840002,3006.3,3005.4,3.327]
[1766448296591,3.49840002,3006.3,3005.3,0.00499002]
[1766448296787,3.49840002,3006.3,3005.3,3.33199002]
[1766448297195,3.33199002,3006.3,3005.3,0.00499002]
[1766448297395,7.83599002,3006.3,3005.3,0.00499002]
[1766448297694,0.16643,3006.0,3005.3,0.00499002]
[1766448297894,3.327,3005.9,3005.3,0.00499002]
[1766448298391,2.028,3005.9,3005.4,3.327]
[1766448298593,4.50899002,3006.3,3005.4,3.327]
[1766448298594,0.0123,3006.2,3005.4,3.327]
[1766448298797,0.00499002,3006.3,3005.4,3.327]
[1766448306407,0.00499002,3006.3,3005.3,0.00499002]
[1766448306609,0.00499002,3006.3,3005.4,3.327]
[1766448308212,0.00499002,3006.3,3005.3,0.00499002]
[1766448308413,0.00499002,3006.3,3005.4,3.327]
[1766448308914,0.00499002,3006.3,3005.5,3.327]
[1766448324220,2.3874,3006.4,3005.5,3.327]
[1766448324421,0.5082,3006.4,3005.5,3.327]
[1766448325229,0.00499002,3006.3,3005.5,3.327]
[1766448328424,0.5082,3006.4,3005.5,3.327]
[1766448329628,3.327,3006.7,3005.5,3.327]
[1766448330830,3.33077289,3006.7,3005.5,3.327]
[1766448337135,3.33077289,3006.7,3005.3,0.00499002]
[1766448338134,0.16643,3006.1,3005.3,0.00499002]
[1766448338338,3.327,3006.0,3005.3,0.00499002]
[1766448339738,3.327,3006.0,3005.3,3.33199002]
[1766448344635,3.327,3006.0,3005.3,0.00499002]
[1766448344835,3.327,3006.0,3005.4,3.327]
[1766448345036,3.49343,3006.0,3005.1,0.00242626]
[1766448346036,0.00499002,3005.9,3005.2,0.00499002]
[1766448347636,2.51753,3006.0,3005.2,3.33199002]
[1766448347936,2.3511,3006.0,3005.2,3.33199002]
[1766448348540,3.327,3006.3,3005.2,7.71999002]
[1766448352342,3.4934,3006.6,3005.2,7.71999002]
[1766448354950,3.4934,3006.6,3005.3,5.722]
[1766448358649,3.4934,3006.6,3005.2,0.00499002]
[1766448358948,3.4934,3006.6,3005.3,9.18]
[1766448361549,3.4934,3006.6,3005.2,0.00499002]
[1766448361753,3.4934,3006.6,3005.3,9.18]
[1766448363353,3.4934,3006.6,3005.2,0.00499002]
[1766448363555,3.4934,3006.6,3005.3,9.18]
[1766448371866,3.4934,3006.6,3005.2,0.00499002]
[1766448372167,3.4934,3006.6,3005.3,9.179]
[1766448374864,3.327,3006.6,3005.3,9.179]
[1766448375070,0.00377289,3006.7,3005.3,9.179]
[1766448377567,0.00377289,3006.7,3005.2,0.00499002]
[1766448377765,0.00377289,3006.7,3005.3,12.578]
[1766448379574,0.00377289,3006.7,3005.2,0.00499002]
[1766448379775,0.00377289,3006.7,3005.3,12.578]
[1766448381880,3.327,3006.6,3005.2,0.00499002]
[1766448382187,3.327,3006.6,3005.3,3.327]
[1766448382480,3.327,3006.6,3005.4,6.775]
[1766448382876,3.327,3006.6,3005.5,3.327]
[1766448387881,0.00377289,3006.7,3005.5,3.327]
[1766448393981,0.00377289,3006.7,3005.3,8.318]
[1766448394191,3.327,3006.6,3005.6,3.327]
[1766448399592,3.327,3006.6,3005.2,0.00499002]
[1766448399793,3.327,3006.6,3005.5,5.85]
[1766448399994,3.327,3006.6,3005.6,3.327]
[1766448402899,0.00377289,3006.7,3005.6,3.327]
[1766448406591,0.00377289,3006.7,3005.2,0.00499002]
[1766448406786,0.00377289,3006.7,3005.3,17.495]
[1766448407398,0.00377289,3006.7,3005.4,14.168]
[1766448407597,0.00377289,3006.7,3005.4,17.495]
[1766448412100,0.00377289,3006.7,3005.5,9.177]
[1766448412605,0.00377289,3006.7,3005.2,0.00499002]
[1766448412804,0.00377289,3006.7,3005.3,17.495]
[1766448416705,0.00377289,3006.7,3005.2,0.00499002]
[1766448416905,0.00377289,3006.7,3005.3,12.515]
[1766448418807,0.00377289,3006.7,3005.2,0.00499002]
[1766448419007,0.00377289,3006.7,3005.3,12.533]
[1766448420709,3.327,3006.6,3005.2,0.00499002]
[1766448420908,3.327,3006.6,3005.4,5.849]
[1766448421816,3.327,3006.6,3005.2,0.00499002]
[1766448422007,3.327,3006.6,3005.5,5.849]
[1766448422310,3.327,3006.6,3005.6,3.327]
[1766448422814,3.327,3006.6,3005.7,9.176]
[1766448423416,3.327,3006.6,3005.2,0.00499002]
[1766448423806,3.327,3006.6,3005.3,12.541]
[1766448424008,3.327,3006.6,3005.2,0.00499002]
[1766448424312,3.327,3006.6,3005.3,12.597]
[1766448424515,3.327,3006.6,3005.2,0.00499002]
[1766448424816,3.327,3006.6,3005.3,17.494]
[1766448427313,3.327,3006.6,3005.2,0.00499002]
[1766448427512,3.327,3006.6,3005.3,12.597]
[1766448429918,3.327,3006.6,3005.2,0.00499002]
[1766448430215,3.327,3006.6,3005.3,12.578]
[1766448432118,3.327,3006.6,3005.2,0.00499002]
[1766448432318,3.327,3006.6,3005.3,12.578]
[1766448434212,3.327,3006.6,3005.4,5.848]
[1766448434412,3.327,3006.6,3005.4,9.175]
[1766448436419,3.327,3006.6,3005.5,9.175]
[1766448436609,3.327,3006.6,3005.6,9.175]
[1766448437113,3.327,3006.6,3005.2,0.00499002]
[1766448437420,3.327,3006.6,3005.3,3.425]
[1766448440326,3.327,3006.6,3005.2,0.00499002]
[1766448440524,3.327,3006.6,3005.3,3.423]
[1766448441126,3.327,3006.6,3005.2,0.00499002]
[1766448441328,3.327,3006.6,3005.3,3.423]
[1766448446738,4.45243203,3007.2,3005.3,3.423]
[1766448447036,1.12543203,3007.2,3005.4,3.63366896]
[1766448447238,3.327,3007.5,3005.4,3.63366896]
[1766448447839,3.32994822,3007.5,3005.4,3.63366896]
[1766448448541,3.32994822,3007.5,3005.5,40.8]
[1766448448742,3.32994822,3007.5,3005.6,36.599]
[1766448453038,0.00294822,3007.5,3005.6,36.599]
[1766448453237,3.32894822,3007.5,3005.7,50.78]
[1766448459953,1.19264653,3010.3,3007.7,0.0008]
[1766448460243,2.38469425,3011.4,3008.7,0.00499002]
[1766448460244,0.16618,3010.6,3008.7,0.00499002]
[1766448460447,3.351,3010.5,3008.8,3.326]
[1766448460654,3.351,3010.5,3008.9,5.91]
[1766448461043,3.35423673,3010.5,3008.9,5.914072]
[1766448461239,3.35423673,3010.5,3009.0,5.909]
[1766448461445,3.35423673,3010.5,3009.1,3.326]
[1766448462347,3.35423673,3010.5,3008.9,0.004072]
[1766448462548,3.35423673,3010.5,3008.7,0.00499002]
[1766448462549,0.16619,3010.4,3008.7,0.00499002]
[1766448462744,0.16619,3010.4,3008.7,3.33099002]
[1766448462944,0.16619,3010.4,3008.8,3.325]
[1766448463750,0.16619,3010.4,3008.8,3.32853871]
[1766448468558,1.24967751,3010.4,3008.8,0.00353871]
[1766448468752,0.16622,3009.8,3008.7,0.00499002]
[1766448468954,17.56623,3009.7,3008.1,1.38947507]
[1766448469153,4.066,3009.6,3008.2,3.325]
[1766448469352,4.066,3009.6,3008.1,1.38947507]
[1766448469555,4.066,3009.6,3008.2,3.325]
[1766448469749,4.066,3009.6,3008.1,1.38947507]
[1766448470058,0.00499002,3009.2,3008.5,0.00499002]
[1766448470258,3.325,3009.1,3008.5,0.00499002]
[1766448471158,5.763,3009.0,3008.2,0.00424538]
[1766448471460,5.763,3009.0,3007.9,3.325]
[1766448471763,5.763,3009.0,3007.8,3.325]
[1766448472361,5.763,3009.0,3008.1,0.00499002]
[1766448480262,0.16627,3008.9,3007.8,0.00409439]
[1766448480564,3.325,3008.8,3007.8,0.00409439]
[1766448481361,3.325,3008.8,3008.0,0.00499002]
[1766448482757,0.16627,3008.9,3008.0,0.00499002]
[1766448483058,9.088,3008.8,3008.0,0.00499002]
[1766448484561,0.00499002,3009.2,3008.0,0.00499002]
[1766448484867,3.325,3009.1,3008.0,0.00499002]
[1766448494365,3.325,3009.1,3008.1,3.325]
[1766448497570,3.325,3009.1,3008.0,0.00499002]
[1766448497775,3.325,3009.1,3008.0,3.32999002]
[1766448500479,3.325,3009.1,3008.0,0.00499002]
[1766448500875,3.325,3009.1,3008.0,3.32999002]
[1766448509082,3.325,3009.1,3008.0,0.00499002]
[1766448509283,3.325,3009.1,3008.1,3.325]
[1766448512080,3.325,3009.1,3008.1,2.0057]
[1766448512288,4.61247104,3009.1,3008.0,0.00499002]
[1766448512474,0.16627,3009.0,3008.0,0.00499002]
[1766448541913,4.44621104,3009.1,3007.8,0.00409439]
[1766448542109,0.90482182,3009.0,3007.1,3.325]
[1766448542309,0.90482182,3009.0,3007.2,3.325]
[1766448542911,0.90482182,3009.0,3007.8,0.00499002]
[1766448543114,0.90482182,3009.0,3007.8,0.00923124]
[1766448543421,0.16628,3008.7,3007.8,0.00923124]
[1766448543621,17.402,3008.6,3007.8,0.00923124]
[1766448543919,17.402,3008.6,3007.2,3.325]
[1766448544822,17.402,3008.6,3007.6,0.00499002]
[1766448550426,17.402,3008.6,3007.2,3.32780772]
[1766448550427,17.402,3008.6,3007.2,0.00280772]
[1766448550620,17.402,3008.6,3007.2,3.32780772]
[1766448551419,17.402,3008.6,3007.6,0.00332668]
[1766448568230,17.56829,3008.6,3007.6,0.00332668]
[1766448568532,17.56829,3008.6,3007.3,3.325]
[1766448571936,17.56829,3008.6,3007.2,0.00280772]
[1766448572135,17.56829,3008.6,3007.3,3.325]
[1766448575529,17.56829,3008.6,3007.2,0.00280772]
[1766448575734,17.56829,3008.6,3007.3,3.325]
[1766448583641,9.089,3008.6,3007.3,3.325]
[1766448584034,9.098,3009.0,3007.3,3.325]
[1766448586950,0.00499002,3009.2,3007.4,33.256]
[1766448587156,0.00499002,3009.2,3007.5,8.314]
[1766448587357,3.325,3009.3,3007.6,9.223]
[1766448587654,5.349,3009.6,3007.6,14.38838265]
[1766448587853,3.325,3009.9,3007.6,17.19955709]
[1766448588353,0.00499002,3009.1,3008.4,0.00499002]
[1766448588548,0.00499002,3009.1,3008.5,17.537]
[1766448590467,3.325,3009.9,3008.5,17.537]
[1766448591359,0.00499002,3009.5,3008.5,17.537]
[1766448591555,3.325,3009.9,3008.5,17.537]
[1766448592259,3.325,3009.9,3008.4,0.00499002]
[1766448592458,3.325,3009.9,3008.5,5.91]
[1766448592763,0.00499002,3009.5,3008.6,3.324]
[1766448594859,0.00499002,3009.5,3008.7,5.91]
[1766448595053,0.00499002,3009.5,3008.8,3.324]
[1766448595257,0.00499002,3009.5,3008.4,0.00499002]
[1766448595665,0.00499002,3009.5,3008.5,9.235]
[1766448596266,0.00499002,3009.5,3008.4,0.00499002]
[1766448596468,0.00499002,3009.5,3008.5,4.127]
[1766448596758,0.00499002,3009.5,3008.4,0.00499002]
[1766448596963,0.00499002,3009.5,3008.5,9.235]
[1766448597164,3.324,3009.6,3008.5,9.235]
[1766448597662,0.1662,3010.1,3008.4,0.00499002]
[1766448597663,3.324,3009.8,3008.4,0.00499002]
[1766448597965,3.324,3009.8,3008.5,9.235]
[1766448598168,0.00499002,3009.5,3008.5,9.235]
[1766448601468,3.324,3009.8,3008.5,9.235]
[1766448602069,0.1662,3010.1,3008.5,9.235]
[1766448602070,3.4902,3010.1,3008.5,9.235]
[1766448602464,0.00499002,3009.6,3008.5,9.235]
[1766448603968,3.324,3010.1,3008.5,9.235]
[1766448604878,0.00332668,3009.6,3008.5,9.235]
[1766448605567,0.00332668,3009.6,3008.4,0.00499002]
[1766448605969,0.00332668,3009.6,3008.5,17.546]
[1766448609576,0.00332668,3009.6,3008.4,0.00499002]
[1766448609778,0.00332668,3009.6,3008.5,17.545]
[1766448610783,0.00332668,3009.6,3008.4,0.00499002]
[1766448611082,0.00332668,3009.6,3008.5,8.155]
[1766448611284,0.00332668,3009.6,3008.4,0.00499002]
[1766448611578,0.00332668,3009.6,3008.5,5.913]
[1766448611882,0.00332668,3009.6,3008.5,9.236]
[1766448612381,3.323,3009.5,3008.6,3.323]
[1766448612782,3.323,3009.5,3008.4,0.00499002]
[1766448612982,3.323,3009.5,3008.5,9.236]
[1766448613282,8.562,3009.5,3008.3,10.55000398]
[1766448613983,8.562,3009.5,3008.3,9.236]
[1766448614371,8.562,3009.5,3008.6,0.00499002]
[1766448614580,8.562,3009.5,3008.3,2.565]
[1766448614779,8.562,3009.5,3008.3,5.888]
[1766448615676,8.562,3009.5,3008.6,0.00499002]
[1766448616477,8.562,3009.5,3008.4,3.324]
[1766448617584,8.562,3009.5,3008.6,0.00499002]
[1766448630308,8.562,3009.5,3008.7,3.324]
[1766448630508,0.00332668,3009.6,3008.7,3.324]
[1766448630706,0.00332668,3009.6,3008.7,7.098]
[1766448631108,0.00332668,3009.6,3008.6,5.91699002]
[1766448631307,0.00332668,3009.6,3008.7,3.324]
[1766448631803,0.00332668,3009.6,3008.6,0.00499002]
[1766448632010,0.00332668,3009.6,3008.6,3.32899002]
[1766448632204,0.00332668,3009.6,3008.6,0.00499002]
[1766448633002,0.00332668,3009.6,3008.0,0.613]
[1766448633309,0.00332668,3009.6,3007.3,2.97751444]
[1766448633310,8.31332668,3009.6,3007.3,2.97751444]
[1766448633511,8.31332668,3009.6,3007.1,2.97751444]
[1766448633710,8.31332668,3009.6,3007.6,0.798]
[1766448633905,8.31332668,3009.6,3007.7,3.324]
[1766448634109,8.31332668,3009.6,3008.3,0.00499002]
[1766448634515,8.47955668,3009.6,3008.3,0.00499002]
[1766448635217,8.47955668,3009.6,3007.9,3.324]
[1766448636212,8.47955668,3009.6,3008.4,0.00499002]
[1766448636414,8.47955668,3009.6,3008.0,3.324]
[1766448637817,5.773,3009.5,3008.0,3.324]
[1766448638005,3.324,3009.4,3008.0,3.324]
[1766448640518,3.324,3009.4,3007.0,45.23438884]
[1766448640719,3.324,3009.4,3007.3,12.422]
[1766448642120,3.324,3009.4,3007.4,17.547]
[1766448642922,3.324,3009.4,3007.1,2.97751444]
[1766448643218,3.324,3009.4,3007.5,5.912]
[1766448643416,3.324,3009.4,3007.6,3.324]
[1766448646525,3.324,3009.4,3007.7,9.235]
[1766448646718,3.324,3009.4,3007.7,5.911]
[1766448646924,3.324,3009.4,3007.8,3.324]
[1766448647826,3.49024,3009.4,3007.8,3.324]
[1766448648028,0.16626,3009.2,3007.8,3.324]
[1766448648227,3.324,3009.1,3007.5,3.324]
[1766448648428,2.879,3009.0,3007.5,3.324]
[1766448649923,2.879,3009.0,3007.2,9.23780772]
[1766448650324,0.16629,3008.6,3007.2,3.32680772]
[1766448650530,15.859,3008.5,3007.2,3.32680772]
[1766448651833,15.859,3008.5,3007.2,0.00280772]
[1766448653533,16.02529,3008.5,3007.2,0.00280772]
[1766448653734,0.1663,3008.4,3007.2,0.00280772]
[1766448655132,15.859,3008.5,3006.8,3.325]
[1766448655133,0.16631,3008.2,3006.8,3.325]
[1766448655321,0.00499002,3007.8,3006.8,3.325]
[1766448655523,5.968,3007.7,3006.8,3.325]
[1766448655931,5.968,3007.7,3006.4,1.43706962]
[1766448656136,5.97120497,3007.7,3006.5,3.325]
[1766448659234,5.97120497,3007.7,3006.6,3.325]
[1766448660033,5.97120497,3007.7,3006.4,1.44112667]
[1766448660331,5.97120497,3007.7,3006.5,3.325]
[1766448660627,5.97120497,3007.7,3006.4,1.44112667]
[1766448660832,5.97120497,3007.7,3006.5,3.325]
[1766448661733,5.97120497,3007.7,3006.4,1.44112667]
[1766448662127,5.97120497,3007.7,3006.5,3.325]
[1766448662834,5.97120497,3007.7,3006.6,3.325]
[1766448663738,5.97120497,3007.7,3006.4,0.00405705]
[1766448663931,5.97120497,3007.7,3006.6,3.325]
[1766448664632,5.97120497,3007.7,3006.5,3.325]
[1766448676737,5.97120497,3007.7,3006.4,0.00405705]
[1766448676738,6.13754497,3007.7,3006.4,0.00405705]
[1766448676937,14.45254497,3007.7,3006.4,0.00405705]
[1766448677141,0.16634,3007.6,3006.4,0.00405705]
[1766448679044,14.28620497,3007.7,3006.4,0.00405705]
[1766448679339,0.00320497,3007.7,3006.5,3.326]
[1766448679534,9.103,3007.6,3006.5,3.326]
[1766448694559,9.103,3007.6,3006.5,4.7690035]
[1766448702171,0.00320497,3007.7,3006.6,5.91]
[1766448703067,3.326,3007.6,3006.5,1.4430035]